[Event "Late-Titled-Tuesday-Blitz-June-25-2024"]
[Site "Chess.com"]
[Date "2024.06.25"]
[Round "4"]
[White "Talent-OF-Slovenia"]
[Black "Denmark2015"]
[Result "1-0"]
[WhiteElo "2453"]
[BlackElo "2613"]
[TimeControl "180+1"]
[EndTime "14:36:21 PDT"]
[Termination "Talent-OF-Slovenia won by resignation"]

1. e4 {[%clk 0:02:58.4]} 1... e6 {[%clk 0:03:00.9]} 2. d4 {[%clk 0:02:58.5]}
2... d5 {[%clk 0:03:01.2]} 3. exd5 {[%clk 0:02:58]} 3... exd5 {[%clk 0:03:01.2]}
4. Bd3 {[%clk 0:02:57.9]} 4... c5 {[%clk 0:03:00.7]} 5. Nf3 {[%clk 0:02:55.5]}
5... c4 {[%clk 0:02:57]} 6. Be2 {[%clk 0:02:52.4]} 6... Nf6 {[%clk 0:02:56.7]}
7. O-O {[%clk 0:02:51.1]} 7... Bd6 {[%clk 0:02:56.8]} 8. b3 {[%clk 0:02:50.7]}
8... cxb3 {[%clk 0:02:56.4]} 9. axb3 {[%clk 0:02:51.4]} 9... O-O {[%clk
0:02:56.6]} 10. c4 {[%clk 0:02:51]} 10... h6 {[%clk 0:02:48.4]} 11. Nc3 {[%clk
0:02:48.6]} 11... Be6 {[%clk 0:02:45.1]} 12. c5 {[%clk 0:02:46]} 12... Bc7
{[%clk 0:02:43.4]} 13. b4 {[%clk 0:02:43.6]} 13... b6 {[%clk 0:02:28.3]} 14. b5
{[%clk 0:02:31.6]} 14... bxc5 {[%clk 0:02:22.7]} 15. dxc5 {[%clk 0:02:30.1]}
15... Nbd7 {[%clk 0:02:23]} 16. c6 {[%clk 0:02:29]} 16... Nb6 {[%clk 0:02:14.2]}
17. Be3 {[%clk 0:02:26.1]} 17... Re8 {[%clk 0:02:06.3]} 18. h3 {[%clk
0:02:18.3]} 18... Qd6 {[%clk 0:02:02.9]} 19. Qd4 {[%clk 0:02:10.7]} 19... Red8
{[%clk 0:01:28.6]} 20. Rfd1 {[%clk 0:02:05.8]} 20... Qe7 {[%clk 0:01:23.8]} 21.
Bf4 {[%clk 0:02:00.7]} 21... Bxf4 {[%clk 0:01:14.6]} 22. Qxf4 {[%clk 0:02:01.2]}
22... Qc5 {[%clk 0:01:11.2]} 23. Qd4 {[%clk 0:01:59.3]} 23... Qd6 {[%clk
0:01:08.4]} 24. Na4 {[%clk 0:01:56.1]} 24... Nxa4 {[%clk 0:01:01]} 25. Rxa4
{[%clk 0:01:55.6]} 25... Qe7 {[%clk 0:00:37.2]} 26. Rda1 {[%clk 0:01:54.7]}
26... Ne8 {[%clk 0:00:31.1]} 27. Rxa7 {[%clk 0:01:52.5]} 27... Rxa7 {[%clk
0:00:30.9]} 28. Rxa7 {[%clk 0:01:49.5]} 28... Qd6 {[%clk 0:00:30.9]} 29. Bd3
{[%clk 0:01:40.2]} 29... Rc8 {[%clk 0:00:21.9]} 30. Ra1 {[%clk 0:01:23.4]} 30...
Qc7 {[%clk 0:00:19.3]} 31. Qc5 {[%clk 0:01:22.2]} 31... Rb8 {[%clk 0:00:18.9]}
32. Nd4 {[%clk 0:01:22.4]} 32... Nd6 {[%clk 0:00:17.8]} 33. Ra7 {[%clk
0:01:20.2]} 33... Nb7 {[%clk 0:00:12.1]} 34. Rxb7 {[%clk 0:01:12]} 34... Rxb7
{[%clk 0:00:12]} 35. cxb7 {[%clk 0:01:12.4]} 35... Qxc5 {[%clk 0:00:10.5]} 36.
b8=Q+ {[%clk 0:01:10.5]} 36... Qc8 {[%clk 0:00:10.3]} 37. Qxc8+ {[%clk
0:01:08.8]} 37... Bxc8 {[%clk 0:00:11.2]} 38. b6 {[%clk 0:01:09.7]} 38... Bb7
{[%clk 0:00:10]} 39. Bb5 {[%clk 0:01:10.2]} 1-0

[Event "Late-Titled-Tuesday-Blitz-June-25-2024"]
[Site "Chess.com"]
[Date "2024.06.25"]
[Round "4"]
[White "th3d4rkness"]
[Black "SharathRk6"]
[Result "1-0"]
[WhiteElo "2272"]
[BlackElo "2462"]
[TimeControl "180+1"]
[EndTime "14:36:21 PDT"]
[Termination "th3d4rkness won by resignation"]

1. e4 {[%clk 0:03:00.9]} 1... e5 {[%clk 0:02:59.2]} 2. Nf3 {[%clk 0:02:57.9]}
2... Nc6 {[%clk 0:02:59.7]} 3. d4 {[%clk 0:02:57.9]} 3... exd4 {[%clk
0:02:59.1]} 4. Bc4 {[%clk 0:02:58.1]} 4... Nf6 {[%clk 0:02:59.1]} 5. e5 {[%clk
0:02:58.4]} 5... d5 {[%clk 0:02:59.2]} 6. Bb5 {[%clk 0:02:58.8]} 6... Ne4 {[%clk
0:02:58.9]} 7. Nxd4 {[%clk 0:02:57]} 7... Bc5 {[%clk 0:02:59.4]} 8. Be3 {[%clk
0:02:54.4]} 8... Bd7 {[%clk 0:02:52.4]} 9. Bxc6 {[%clk 0:02:53.1]} 9... bxc6
{[%clk 0:02:51]} 10. O-O {[%clk 0:02:51.9]} 10... O-O {[%clk 0:02:51.6]} 11. f3
{[%clk 0:02:51.6]} 11... f6 {[%clk 0:02:39.8]} 12. e6 {[%clk 0:02:39.1]} 12...
Bxe6 {[%clk 0:01:57.4]} 13. Nxe6 {[%clk 0:02:37.4]} 13... Bxe3+ {[%clk 0:01:56]}
14. Kh1 {[%clk 0:02:37.4]} 14... Qe7 {[%clk 0:01:53.4]} 15. Nxf8 {[%clk
0:02:17.4]} 15... Nf2+ {[%clk 0:01:52.7]} 16. Rxf2 {[%clk 0:02:16.4]} 16... Bxf2
{[%clk 0:01:53.6]} 17. Nxh7 {[%clk 0:02:13.9]} 17... Kxh7 {[%clk 0:01:52.9]} 18.
Qd3+ {[%clk 0:02:05.3]} 18... Kg8 {[%clk 0:01:50.5]} 19. Nc3 {[%clk 0:02:02.4]}
19... Re8 {[%clk 0:01:50.4]} 20. Rf1 {[%clk 0:01:49.1]} 20... Qe1 {[%clk
0:01:36.6]} 21. g3 {[%clk 0:01:47.5]} 21... Qe3 {[%clk 0:00:57.4]} 22. Kg2
{[%clk 0:01:35.3]} 22... Qxd3 {[%clk 0:00:56.1]} 23. cxd3 {[%clk 0:01:35.1]}
23... Bd4 {[%clk 0:00:56.8]} 24. f4 {[%clk 0:01:18.7]} 24... Kf7 {[%clk
0:00:47.7]} 25. h4 {[%clk 0:01:14.1]} 25... Rb8 {[%clk 0:00:43.4]} 26. Na4
{[%clk 0:01:04.2]} 26... Re8 {[%clk 0:00:39.4]} 27. Nc3 {[%clk 0:01:03.6]} 27...
Rb8 {[%clk 0:00:34.3]} 28. Na4 {[%clk 0:01:03.2]} 28... Rb4 {[%clk 0:00:34.4]}
29. b3 {[%clk 0:01:01.6]} 29... Rb8 {[%clk 0:00:19.1]} 30. Re1 {[%clk
0:00:58.3]} 30... Re8 {[%clk 0:00:17.3]} 31. Rc1 {[%clk 0:00:50.9]} 31... Re1
{[%clk 0:00:16.7]} 32. Rxe1 {[%clk 0:00:49.2]} 32... g6 {[%clk 0:00:13.5]} 33.
Rc1 {[%clk 0:00:48.2]} 1-0

[Event "Late-Titled-Tuesday-Blitz-June-25-2024"]
[Site "Chess.com"]
[Date "2024.06.25"]
[Round "4"]
[White "Perecke"]
[Black "FMOlexandrProhorov"]
[Result "1/2-1/2"]
[WhiteElo "2508"]
[BlackElo "2366"]
[TimeControl "180+1"]
[EndTime "14:36:26 PDT"]
[Termination "Game drawn by agreement"]

1. d4 {[%clk 0:03:00.9]} 1... d6 {[%clk 0:02:58.3]} 2. e4 {[%clk 0:03:00]} 2...
g6 {[%clk 0:02:55.8]} 3. Nc3 {[%clk 0:02:59.7]} 3... Bg7 {[%clk 0:02:56.4]} 4.
f4 {[%clk 0:02:59.6]} 4... Nf6 {[%clk 0:02:51.9]} 5. Nf3 {[%clk 0:02:59.1]} 5...
c5 {[%clk 0:02:51.3]} 6. dxc5 {[%clk 0:02:57.3]} 6... Qa5 {[%clk 0:02:50.4]} 7.
Bd3 {[%clk 0:02:43.3]} 7... Qxc5 {[%clk 0:02:48.8]} 8. Qe2 {[%clk 0:02:41.6]}
8... O-O {[%clk 0:02:41.6]} 9. Be3 {[%clk 0:02:41.2]} 9... Qa5 {[%clk
0:02:41.6]} 10. O-O {[%clk 0:02:40.4]} 10... Bg4 {[%clk 0:02:39.2]} 11. h3
{[%clk 0:02:39.2]} 11... Bxf3 {[%clk 0:02:39.1]} 12. Qxf3 {[%clk 0:02:40.1]}
12... Nc6 {[%clk 0:02:39.5]} 13. Rad1 {[%clk 0:02:39]} 13... Nd7 {[%clk
0:02:39.2]} 14. Nd5 {[%clk 0:02:26.6]} 14... e6 {[%clk 0:02:31.2]} 15. Nc3
{[%clk 0:02:26]} 15... Bxc3 {[%clk 0:02:22.1]} 16. bxc3 {[%clk 0:02:26.9]} 16...
Qxc3 {[%clk 0:02:21.5]} 17. f5 {[%clk 0:02:24.9]} 17... Nce5 {[%clk 0:02:10.2]}
18. Qf2 {[%clk 0:02:24.8]} 18... Rac8 {[%clk 0:01:58.1]} 19. Bh6 {[%clk
0:02:10.1]} 19... Rfe8 {[%clk 0:01:58]} 20. fxg6 {[%clk 0:01:42.2]} 20... hxg6
{[%clk 0:01:51.2]} 21. Bb5 {[%clk 0:01:33.4]} 21... Qc5 {[%clk 0:01:40.8]} 22.
Bxd7 {[%clk 0:01:11.2]} 22... Qxf2+ {[%clk 0:01:33.3]} 23. Rxf2 {[%clk
0:01:12.1]} 23... Nxd7 {[%clk 0:01:31.6]} 24. Rxd6 {[%clk 0:01:12.3]} 24... Nc5
{[%clk 0:01:27.5]} 25. Rd4 {[%clk 0:00:56.3]} 25... e5 {[%clk 0:01:26.2]} 26.
Rc4 {[%clk 0:00:49.9]} 26... b5 {[%clk 0:01:21.1]} 27. Rb4 {[%clk 0:00:45.7]}
27... a6 {[%clk 0:01:20.8]} 28. Be3 {[%clk 0:00:42]} 28... Red8 {[%clk
0:01:11.2]} 29. Rf6 {[%clk 0:00:34.1]} 29... Kg7 {[%clk 0:01:02.4]} 30. Rb6
{[%clk 0:00:31]} 30... Rd1+ {[%clk 0:00:47.5]} 31. Kh2 {[%clk 0:00:30.7]} 31...
Ne6 {[%clk 0:00:45.2]} 1/2-1/2

[Event "Late-Titled-Tuesday-Blitz-June-25-2024"]
[Site "Chess.com"]
[Date "2024.06.25"]
[Round "4"]
[White "Gzucaritas"]
[Black "KVAIDAN"]
[Result "1-0"]
[WhiteElo "2043"]
[BlackElo "2416"]
[TimeControl "180+1"]
[EndTime "14:36:26 PDT"]
[Termination "Gzucaritas won by checkmate"]

1. e4 {[%clk 0:03:00.9]} 1... e5 {[%clk 0:02:59.3]} 2. Nf3 {[%clk 0:03:00.6]}
2... d5 {[%clk 0:02:56.4]} 3. Nxe5 {[%clk 0:02:53.9]} 3... Bd6 {[%clk
0:02:55.5]} 4. d4 {[%clk 0:02:48.3]} 4... dxe4 {[%clk 0:02:56.4]} 5. Nc4 {[%clk
0:02:46.2]} 5... Nf6 {[%clk 0:02:56.2]} 6. Nxd6+ {[%clk 0:02:41.3]} 6... Qxd6
{[%clk 0:02:49.2]} 7. h3 {[%clk 0:02:41.3]} 7... Nc6 {[%clk 0:02:49.2]} 8. Be3
{[%clk 0:02:38.9]} 8... Nd5 {[%clk 0:02:48.9]} 9. Bc1 {[%clk 0:02:20.6]} 9... f5
{[%clk 0:02:47.5]} 10. c4 {[%clk 0:02:19.1]} 10... Nf6 {[%clk 0:02:47.4]} 11. d5
{[%clk 0:02:08.8]} 11... Ne5 {[%clk 0:02:47.2]} 12. Nc3 {[%clk 0:02:06.5]} 12...
Bd7 {[%clk 0:02:46.5]} 13. Bf4 {[%clk 0:02:06.1]} 13... Nd3+ {[%clk 0:02:43.6]}
14. Bxd3 {[%clk 0:02:02.7]} 14... Qxf4 {[%clk 0:02:43.9]} 15. Be2 {[%clk
0:01:59.9]} 15... O-O-O {[%clk 0:02:42.7]} 16. g3 {[%clk 0:01:54.2]} 16... Qd6
{[%clk 0:02:42.4]} 17. Qd4 {[%clk 0:01:32.6]} 17... a6 {[%clk 0:02:41.4]} 18.
O-O-O {[%clk 0:01:32.1]} 18... Qb4 {[%clk 0:02:36.4]} 19. a3 {[%clk 0:01:26]}
19... Qa5 {[%clk 0:02:32]} 20. Qa7 {[%clk 0:01:18.4]} 20... Ba4 {[%clk
0:02:28.7]} 21. Rd2 {[%clk 0:01:10.2]} 21... Bb3 {[%clk 0:02:24.3]} 22. Qa8+
{[%clk 0:01:05.3]} 22... Kd7 {[%clk 0:02:24.1]} 23. Qxb7 {[%clk 0:01:05.5]}
23... Qb6 {[%clk 0:02:19.8]} 24. Qxb6 {[%clk 0:00:59.7]} 24... cxb6 {[%clk
0:02:19.6]} 25. c5 {[%clk 0:00:47.1]} 25... bxc5 {[%clk 0:02:19.1]} 26. Bxa6
{[%clk 0:00:46.7]} 26... c4 {[%clk 0:02:19.3]} 27. d6 {[%clk 0:00:43.4]} 27...
Rb8 {[%clk 0:02:14.9]} 28. Bb5+ {[%clk 0:00:42.6]} 28... Kd8 {[%clk 0:02:14.2]}
29. d7 {[%clk 0:00:39.1]} 29... Rf8 {[%clk 0:02:11]} 30. Re1 {[%clk 0:00:38.3]}
30... Rf7 {[%clk 0:02:10.6]} 31. f3 {[%clk 0:00:33.1]} 31... Re7 {[%clk
0:02:08.5]} 32. fxe4 {[%clk 0:00:32.5]} 32... Nxe4 {[%clk 0:02:08.8]} 33. Nxe4
{[%clk 0:00:23.4]} 33... Rxe4 {[%clk 0:02:09.7]} 34. Rxe4 {[%clk 0:00:22.7]}
34... fxe4 {[%clk 0:02:09.8]} 35. Bc6 {[%clk 0:00:21.8]} 35... Rb6 {[%clk
0:02:09.6]} 36. Bxe4 {[%clk 0:00:21.2]} 36... g6 {[%clk 0:02:08.7]} 37. h4
{[%clk 0:00:15.5]} 37... Re6 {[%clk 0:02:06]} 38. Rd4 {[%clk 0:00:14.7]} 38...
Re7 {[%clk 0:02:02.7]} 39. Bc6 {[%clk 0:00:14.2]} 39... Re1+ {[%clk 0:01:57.7]}
40. Kd2 {[%clk 0:00:14.4]} 40... Rb1 {[%clk 0:01:51.2]} 41. Kc3 {[%clk
0:00:14.4]} 41... Rc1+ {[%clk 0:01:50.9]} 42. Kb4 {[%clk 0:00:14.3]} 42... Re1
{[%clk 0:01:49.8]} 43. a4 {[%clk 0:00:14.1]} 43... Re6 {[%clk 0:01:48.4]} 44.
Bb5 {[%clk 0:00:14.1]} 44... Rb6 {[%clk 0:01:45.2]} 45. a5 {[%clk 0:00:14.1]}
45... Rb7 {[%clk 0:01:45.7]} 46. a6 {[%clk 0:00:14]} 46... Ra7 {[%clk
0:01:46.6]} 47. Ka5 {[%clk 0:00:13.9]} 47... c3 {[%clk 0:01:44.5]} 48. bxc3
{[%clk 0:00:13.5]} 48... Be6 {[%clk 0:01:43.5]} 49. Kb6 {[%clk 0:00:13.6]} 49...
Rc7 {[%clk 0:01:43.9]} 50. a7 {[%clk 0:00:13.1]} 50... Bxd7 {[%clk 0:01:44.8]}
51. Bxd7 {[%clk 0:00:12.9]} 51... Ke7 {[%clk 0:01:45.7]} 52. a8=Q {[%clk
0:00:12.5]} 52... Rxc3 {[%clk 0:01:44.2]} 53. Qe8+ {[%clk 0:00:12.2]} 53... Kf6
{[%clk 0:01:44.6]} 54. Rf4+ {[%clk 0:00:12.3]} 54... Kg7 {[%clk 0:01:45.2]} 55.
Qf8# {[%clk 0:00:12.4]} 1-0

[Event "Late-Titled-Tuesday-Blitz-June-25-2024"]
[Site "Chess.com"]
[Date "2024.06.25"]
[Round "4"]
[White "djano"]
[Black "SchmakAttack"]
[Result "0-1"]
[WhiteElo "2577"]
[BlackElo "2870"]
[TimeControl "180+1"]
[EndTime "14:36:29 PDT"]
[Termination "SchmakAttack won by resignation"]

1. e4 {[%clk 0:03:00.9]} 1... e6 {[%clk 0:02:59.5]} 2. b3 {[%clk 0:02:59.6]}
2... d5 {[%clk 0:02:59.4]} 3. Bb2 {[%clk 0:02:59.9]} 3... Nc6 {[%clk 0:03:00]}
4. d3 {[%clk 0:02:59.1]} 4... dxe4 {[%clk 0:02:44.4]} 5. Nd2 {[%clk 0:02:59.2]}
5... exd3 {[%clk 0:02:29]} 6. Bxd3 {[%clk 0:03:00.1]} 6... Nf6 {[%clk
0:02:29.6]} 7. a3 {[%clk 0:02:57.9]} 7... Be7 {[%clk 0:02:04.6]} 8. Ngf3 {[%clk
0:02:55.9]} 8... O-O {[%clk 0:02:04.8]} 9. Qe2 {[%clk 0:02:55.8]} 9... Nd5
{[%clk 0:01:59.2]} 10. g3 {[%clk 0:02:25.8]} 10... Bf6 {[%clk 0:01:58.4]} 11.
Ne5 {[%clk 0:02:26.1]} 11... Nxe5 {[%clk 0:01:53.7]} 12. Bxe5 {[%clk 0:02:25.7]}
12... Bxe5 {[%clk 0:01:28.6]} 13. Qxe5 {[%clk 0:02:26.6]} 13... Qf6 {[%clk
0:01:29.3]} 14. f4 {[%clk 0:01:53.8]} 14... Qxe5+ {[%clk 0:01:19]} 15. fxe5
{[%clk 0:01:54.7]} 15... Bd7 {[%clk 0:01:19.5]} 16. Ke2 {[%clk 0:01:48.1]} 16...
Bc6 {[%clk 0:01:17.4]} 17. Rhf1 {[%clk 0:01:48]} 17... Rad8 {[%clk 0:01:17.8]}
18. Ne4 {[%clk 0:01:41.2]} 18... Ne7 {[%clk 0:01:13.6]} 19. Ng5 {[%clk
0:01:38.8]} 19... Ng6 {[%clk 0:01:13.4]} 20. h4 {[%clk 0:01:32.2]} 20... Nxe5
{[%clk 0:01:03.1]} 21. Bxh7+ {[%clk 0:01:22.8]} 21... Kh8 {[%clk 0:01:03.3]} 22.
Be4 {[%clk 0:01:19]} 22... Bxe4 {[%clk 0:01:00.5]} 23. Nxe4 {[%clk 0:01:19.9]}
23... Rd4 {[%clk 0:00:52.8]} 24. Nf2 {[%clk 0:01:10.2]} 24... Rfd8 {[%clk
0:00:51.9]} 25. Rad1 {[%clk 0:01:10.9]} 25... Rxd1 {[%clk 0:00:51]} 26. Nxd1
{[%clk 0:01:11.8]} 26... Kg8 {[%clk 0:00:49.6]} 27. Rf4 {[%clk 0:01:10.6]} 27...
f5 {[%clk 0:00:49.3]} 28. Ne3 {[%clk 0:01:05]} 28... Kf7 {[%clk 0:00:49.2]} 29.
Ra4 {[%clk 0:00:59.3]} 29... a6 {[%clk 0:00:48.4]} 30. Rb4 {[%clk 0:00:59.9]}
30... b6 {[%clk 0:00:48.3]} 31. Ra4 {[%clk 0:00:59.3]} 31... a5 {[%clk
0:00:48.6]} 32. b4 {[%clk 0:01:00]} 32... Rd4 {[%clk 0:00:46.7]} 33. c3 {[%clk
0:00:49.4]} 33... Re4 {[%clk 0:00:46.4]} 34. Kd2 {[%clk 0:00:47.2]} 34... Ke7
{[%clk 0:00:36]} 35. Nc2 {[%clk 0:00:47.1]} 35... Nc6 {[%clk 0:00:34.9]} 36. Ne3
{[%clk 0:00:36.5]} 36... b5 {[%clk 0:00:33.5]} 37. Rxa5 {[%clk 0:00:37.1]} 37...
Nxa5 {[%clk 0:00:33.8]} 38. bxa5 {[%clk 0:00:38]} 38... Ra4 {[%clk 0:00:34.5]}
39. c4 {[%clk 0:00:36.9]} 39... bxc4 {[%clk 0:00:34.1]} 40. Kc3 {[%clk
0:00:36.3]} 40... Rxa3+ {[%clk 0:00:34.4]} 0-1

[Event "Late-Titled-Tuesday-Blitz-June-25-2024"]
[Site "Chess.com"]
[Date "2024.06.25"]
[Round "4"]
[White "IngOscarArdila"]
[Black "komogro"]
[Result "0-1"]
[WhiteElo "2377"]
[BlackElo "2522"]
[TimeControl "180+1"]
[EndTime "14:36:34 PDT"]
[Termination "komogro won by resignation"]

1. d4 {[%clk 0:02:59.3]} 1... Nf6 {[%clk 0:02:58.8]} 2. c4 {[%clk 0:02:59.6]}
2... e6 {[%clk 0:02:59.1]} 3. Nc3 {[%clk 0:02:59.8]} 3... Bb4 {[%clk 0:02:58.6]}
4. Qc2 {[%clk 0:02:59.8]} 4... O-O {[%clk 0:02:58.5]} 5. Nf3 {[%clk 0:03:00.2]}
5... c5 {[%clk 0:02:53.6]} 6. dxc5 {[%clk 0:02:59.3]} 6... Bxc5 {[%clk
0:02:52.6]} 7. Bg5 {[%clk 0:02:57]} 7... h6 {[%clk 0:02:50.7]} 8. Bh4 {[%clk
0:02:57.2]} 8... Nc6 {[%clk 0:02:48.6]} 9. e3 {[%clk 0:02:56.9]} 9... Be7 {[%clk
0:02:47.2]} 10. Be2 {[%clk 0:02:56.1]} 10... d6 {[%clk 0:02:45.3]} 11. O-O
{[%clk 0:02:55.9]} 11... b6 {[%clk 0:02:44.5]} 12. Rfd1 {[%clk 0:02:55.8]} 12...
Bb7 {[%clk 0:02:44.1]} 13. a3 {[%clk 0:02:56.1]} 13... Qc7 {[%clk 0:02:43.2]}
14. b4 {[%clk 0:02:56]} 14... Rac8 {[%clk 0:02:42.6]} 15. Rac1 {[%clk
0:02:55.7]} 15... Qb8 {[%clk 0:02:41.6]} 16. Qb2 {[%clk 0:02:51.5]} 16... Rfe8
{[%clk 0:02:38.6]} 17. Bg3 {[%clk 0:02:50.5]} 17... Nh5 {[%clk 0:02:33.5]} 18.
Bh4 {[%clk 0:02:46.9]} 18... Bxh4 {[%clk 0:02:32.6]} 19. Nxh4 {[%clk 0:02:47.8]}
19... Nf6 {[%clk 0:02:31.3]} 20. Nf3 {[%clk 0:02:47.4]} 20... Ne7 {[%clk
0:02:28.2]} 21. Nb5 {[%clk 0:02:45.1]} 21... Nf5 {[%clk 0:02:23.1]} 22. Nfd4
{[%clk 0:02:40.9]} 22... Nxd4 {[%clk 0:02:17.6]} 23. Rxd4 {[%clk 0:02:37.9]}
23... Red8 {[%clk 0:02:15.2]} 24. Rcd1 {[%clk 0:02:36.9]} 24... Ne8 {[%clk
0:02:12.3]} 25. Qd2 {[%clk 0:02:35.3]} 25... d5 {[%clk 0:02:08]} 26. cxd5 {[%clk
0:02:29]} 26... Rxd5 {[%clk 0:02:08.9]} 27. Rxd5 {[%clk 0:02:25.9]} 27... Bxd5
{[%clk 0:02:09.8]} 28. Bf3 {[%clk 0:02:19]} 28... Bxf3 {[%clk 0:02:08.3]} 29.
gxf3 {[%clk 0:02:19.9]} 29... Nf6 {[%clk 0:01:33.6]} 30. Qd6 {[%clk 0:02:13.3]}
30... Qb7 {[%clk 0:01:31.2]} 31. Qe5 {[%clk 0:01:57.4]} 31... Qxf3 {[%clk
0:01:27.8]} 32. Re1 {[%clk 0:01:43]} 32... Qxf2+ {[%clk 0:01:27.2]} 33. Kxf2
{[%clk 0:01:42]} 33... Ng4+ {[%clk 0:01:27.3]} 34. Kf3 {[%clk 0:01:40.8]} 34...
Nxe5+ {[%clk 0:01:28.2]} 35. Ke4 {[%clk 0:01:41.7]} 35... Nc4 {[%clk 0:01:27.2]}
36. Rd1 {[%clk 0:01:34.6]} 36... a6 {[%clk 0:01:23.1]} 37. Na7 {[%clk
0:01:32.4]} 37... Rc7 {[%clk 0:01:17.3]} 38. Rd8+ {[%clk 0:01:32.3]} 38... Kh7
{[%clk 0:01:17.4]} 39. Nc8 {[%clk 0:01:31.4]} 39... Rxc8 {[%clk 0:01:11]} 40.
Rxc8 {[%clk 0:01:30.5]} 40... Nd6+ {[%clk 0:01:11.1]} 41. Ke5 {[%clk 0:01:31.4]}
41... Nxc8 {[%clk 0:01:11.7]} 42. a4 {[%clk 0:01:30.8]} 42... Kg8 {[%clk
0:01:11.3]} 43. a5 {[%clk 0:01:28.9]} 43... bxa5 {[%clk 0:01:11]} 44. bxa5
{[%clk 0:01:28.9]} 44... Kf8 {[%clk 0:01:08.1]} 45. Kd4 {[%clk 0:01:29.3]} 45...
Ke7 {[%clk 0:01:07.2]} 46. Kc5 {[%clk 0:01:30.2]} 46... Nd6 {[%clk 0:01:06.6]}
47. Kc6 {[%clk 0:01:29.3]} 47... Nc4 {[%clk 0:01:06.4]} 48. Kb7 {[%clk
0:01:27.3]} 48... Nxa5+ {[%clk 0:01:05.1]} 49. Kxa6 {[%clk 0:01:27.2]} 49... Nc4
{[%clk 0:01:05.3]} 50. e4 {[%clk 0:01:27.8]} 50... e5 {[%clk 0:01:05.1]} 0-1

[Event "Late-Titled-Tuesday-Blitz-June-25-2024"]
[Site "Chess.com"]
[Date "2024.06.25"]
[Round "4"]
[White "Heliosis11"]
[Black "Patolindo"]
[Result "0-1"]
[WhiteElo "2425"]
[BlackElo "2166"]
[TimeControl "180+1"]
[EndTime "14:36:35 PDT"]
[Termination "Patolindo won by resignation"]

1. d4 {[%clk 0:02:52.6]} 1... Nf6 {[%clk 0:02:59.3]} 2. c4 {[%clk 0:02:51.9]}
2... g6 {[%clk 0:02:59.8]} 3. g3 {[%clk 0:02:51.7]} 3... Bg7 {[%clk 0:02:59.2]}
4. Bg2 {[%clk 0:02:52.3]} 4... d5 {[%clk 0:02:59.1]} 5. Nf3 {[%clk 0:02:52.8]}
5... O-O {[%clk 0:02:58.9]} 6. O-O {[%clk 0:02:53]} 6... dxc4 {[%clk 0:02:59.4]}
7. Qc2 {[%clk 0:02:45.5]} 7... Nc6 {[%clk 0:02:56.6]} 8. Qxc4 {[%clk 0:02:45.3]}
8... Be6 {[%clk 0:02:56.4]} 9. Qd3 {[%clk 0:02:40.1]} 9... Bf5 {[%clk
0:02:53.6]} 10. Qd1 {[%clk 0:02:38.6]} 10... Be4 {[%clk 0:02:51]} 11. Be3 {[%clk
0:02:26.9]} 11... Nd5 {[%clk 0:02:50]} 12. Nc3 {[%clk 0:02:26.5]} 12... Nxe3
{[%clk 0:02:47.2]} 13. fxe3 {[%clk 0:02:26.7]} 13... Bf5 {[%clk 0:02:38.6]} 14.
e4 {[%clk 0:02:24.9]} 14... Bd7 {[%clk 0:02:34.2]} 15. d5 {[%clk 0:02:21.7]}
15... Ne5 {[%clk 0:02:32.7]} 16. e3 {[%clk 0:02:14.7]} 16... Ng4 {[%clk
0:02:20.7]} 17. Qd3 {[%clk 0:02:09.4]} 17... c6 {[%clk 0:02:17]} 18. Rad1 {[%clk
0:02:05.7]} 18... Qb6 {[%clk 0:02:12]} 19. Nd4 {[%clk 0:02:00.2]} 19... Rad8
{[%clk 0:02:07.2]} 20. Qe2 {[%clk 0:01:52.3]} 20... Bh6 {[%clk 0:01:42.1]} 21.
Rf3 {[%clk 0:01:41.4]} 21... Ne5 {[%clk 0:01:20.1]} 22. Rff1 {[%clk 0:01:40.7]}
22... Bg4 {[%clk 0:01:19.6]} 23. Bf3 {[%clk 0:01:38.5]} 23... Bxf3 {[%clk
0:01:19.7]} 24. Nxf3 {[%clk 0:01:38.8]} 24... Ng4 {[%clk 0:01:15.8]} 25. Rd3
{[%clk 0:01:34]} 25... Nxe3 {[%clk 0:01:11.7]} 26. Rb1 {[%clk 0:01:05.6]} 26...
cxd5 {[%clk 0:01:10.8]} 27. exd5 {[%clk 0:00:58]} 27... Nxd5+ {[%clk 0:01:03.9]}
28. Kh1 {[%clk 0:00:57.6]} 28... Nxc3 {[%clk 0:01:03.4]} 29. Rxc3 {[%clk
0:00:58.5]} 29... Bg7 {[%clk 0:00:58.8]} 30. Rb3 {[%clk 0:00:57.6]} 30... Qc6
{[%clk 0:00:59]} 31. Re1 {[%clk 0:00:57.1]} 31... e5 {[%clk 0:00:56.3]} 32. Kg1
{[%clk 0:00:54.7]} 32... Rfe8 {[%clk 0:00:55.1]} 33. Ng5 {[%clk 0:00:42.2]}
33... e4 {[%clk 0:00:52.3]} 34. h4 {[%clk 0:00:24.2]} 34... e3 {[%clk
0:00:43.6]} 35. Kh2 {[%clk 0:00:20.1]} 35... Rd2 {[%clk 0:00:41.5]} 0-1